fUSD/lending_fUSD_20240708
["ID","MTS","AMOUNT","RATE_DAILY","PERIOD"]
[331460634,1720424967677,-167.81976027,0.0004438,120]
[331460635,1720424967716,-167.81976027,0.0004438,120]
[331460636,1720424967755,-168.31,0.0004438,120]
[331460637,1720424967794,-177.51587588,0.0004438,120]
[331460638,1720424967832,-177.51587588,0.0004438,120]
[331460639,1720424967870,-177.51587588,0.0004438,120]
[331460640,1720424967908,-177.51587588,0.0004438,120]
[331460641,1720424967948,-177.51587588,0.0004438,120]
[331460642,1720424967990,-177.51587588,0.0004438,120]
[331460643,1720424968032,-177.51587588,0.0004438,120]
[331460644,1720424968071,-177.51587588,0.0004438,120]
[331460645,1720424968109,-177.51587588,0.0004438,120]
[331460646,1720424968149,-177.51587588,0.0004438,120]
[331460647,1720424968187,-177.51587588,0.0004438,120]
[331460648,1720424968226,-177.51587588,0.0004438,120]
[331460649,1720424968267,-177.51587588,0.0004438,120]
[331460650,1720424968308,-177.51587588,0.0004438,120]
[331460651,1720424968347,-177.51587588,0.0004438,120]
[331460652,1720424968385,-177.51587588,0.0004438,120]
[331460653,1720424968425,-177.51587588,0.0004438,120]
[331460654,1720424968469,-177.51587588,0.0004438,120]
[331460655,1720424968511,-177.51587588,0.0004438,120]
[331460656,1720424968552,-178.01,0.0004438,120]
[331460657,1720424968594,-710.1385035,0.0004438,120]
[331460658,1720424968637,-710.1385035,0.0004438,120]
[331460659,1720424968679,-710.1385035,0.0004438,120]
[331460660,1720424968721,-710.1385035,0.0004438,120]
[331460661,1720424968764,-710.1385035,0.0004438,120]
[331460662,1720424968806,-710.1385035,0.0004438,120]
[331460663,1720424968849,-710.1385035,0.0004438,120]
[331460664,1720424968890,-710.1385035,0.0004438,120]
[331460665,1720424968929,-710.1385035,0.0004438,120]
[331460666,1720424968971,-710.1385035,0.0004438,120]
[331460667,1720424969012,-710.1385035,0.0004438,120]
[331460668,1720424969052,-710.1385035,0.0004438,120]
[331460669,1720424969095,-710.1385035,0.0004438,120]
[331460670,1720424969136,-710.1385035,0.0004438,120]
[331460671,1720424969177,-710.1385035,0.0004438,120]
[331460672,1720424969219,-710.1385035,0.0004438,120]
[331460673,1720424969260,-710.1385035,0.0004438,120]
[331460674,1720424969302,-710.1385035,0.0004438,120]
[331460675,1720424969343,-710.1385035,0.0004438,120]
[331460676,1720424969386,-710.63,0.0004438,120]
[331460677,1720424969429,-154.0642182,0.0004438,120]
[331460678,1720424969471,-154.0642182,0.0004438,120]
[331460679,1720424969512,-154.0642182,0.0004438,120]
[331460680,1720424969554,-154.0642182,0.0004438,120]
[331460681,1720424969596,-154.0642182,0.0004438,120]
[331460682,1720424969637,-154.0642182,0.0004438,120]
[331460683,1720424969679,-154.0642182,0.0004438,120]
[331460684,1720424969722,-154.0642182,0.0004438,120]
[331460685,1720424969764,-154.0642182,0.0004438,120]
[331460686,1720424970007,-154.0642182,0.0004438,120]
[331460687,1720424970057,-154.0642182,0.0004438,120]
[331460688,1720424970100,-154.0642182,0.0004438,120]
[331460689,1720424970145,-154.0642182,0.0004438,120]
[331460690,1720424970188,-154.0642182,0.0004438,120]
[331460691,1720424970232,-154.0642182,0.0004438,120]
[331460692,1720424970276,-154.0642182,0.0004438,120]
[331460693,1720424970321,-154.0642182,0.0004438,120]
[331460694,1720424970366,-154.0642182,0.0004438,120]
[331460695,1720424970411,-154.56,0.0004438,120]
[331460696,1720424970455,-585.51902917,0.0004438,120]
[331460697,1720424970498,-585.51902917,0.0004438,120]
[331460698,1720424970541,-585.51902917,0.0004438,120]
[331460699,1720424970585,-585.51902917,0.0004438,120]
[331460700,1720424970629,-585.51902917,0.0004438,120]
[331460701,1720424970672,-585.51902917,0.0004438,120]
[331460702,1720424970714,-585.51902917,0.0004438,120]
[331460703,1720424970757,-585.51902917,0.0004438,120]
[331460704,1720424970800,-585.51902917,0.0004438,120]
[331460705,1720424970843,-585.51902917,0.0004438,120]
[331460706,1720424970884,-585.51902917,0.0004438,120]
[331460707,1720424970926,-585.51902917,0.0004438,120]
[331460708,1720424970968,-585.51902917,0.0004438,120]
[331460709,1720424971010,-585.51902917,0.0004438,120]
[331460710,1720424971052,-585.51902917,0.0004438,120]
[331460711,1720424971094,-585.51902917,0.0004438,120]
[331460712,1720424971138,-585.51902917,0.0004438,120]
[331460713,1720424971181,-585.51902917,0.0004438,120]
[331460714,1720424971225,-585.51902917,0.0004438,120]
[331460715,1720424971269,-586.01,0.0004438,120]
[331460716,1720424972591,-199.33007422,0.0004438,120]
[331460717,1720424972644,-199.33007422,0.0004438,120]
[331460718,1720424972689,-199.33007422,0.0004438,120]
[331460719,1720424972732,-199.33007422,0.0004438,120]
[331460720,1720424972774,-199.33007422,0.0004438,120]
[331460721,1720424972814,-199.33007422,0.0004438,120]
[331460722,1720424972855,-199.33007422,0.0004438,120]
[331460723,1720424972896,-199.33007422,0.0004438,120]
[331460724,1720424972936,-199.33007422,0.0004438,120]
[331460725,1720424972982,-199.33007422,0.0004438,120]
[331460726,1720424973027,-199.33007422,0.0004438,120]
[331460727,1720424973071,-199.33007422,0.0004438,120]
[331460728,1720424973112,-199.33007422,0.0004438,120]
[331460729,1720424973153,-199.33007422,0.0004438,120]
[331460730,1720424973194,-199.33007422,0.0004438,120]
[331460731,1720424973234,-199.33007422,0.0004438,120]
[331460732,1720424973275,-199.33007422,0.0004438,120]
[331460733,1720424973318,-199.33007422,0.0004438,120]
[331460734,1720424973360,-199.33007422,0.0004438,120]
[331460735,1720424973401,-199.83,0.0004438,120]
[331460736,1720424973444,-797.3952969,0.0004438,120]
[331460737,1720424973487,-797.3952969,0.0004438,120]
[331460738,1720424973529,-797.3952969,0.0004438,120]
[331460739,1720424973572,-797.3952969,0.0004438,120]
[331460740,1720424973614,-797.3952969,0.0004438,120]
[331460741,1720424973654,-797.3952969,0.0004438,120]
[331460742,1720424973693,-797.3952969,0.0004438,120]
[331460743,1720424973733,-797.3952969,0.0004438,120]
[331460744,1720424973774,-797.3952969,0.0004438,120]
[331460745,1720424973815,-797.3952969,0.0004438,120]
[331460746,1720424973855,-797.3952969,0.0004438,120]
[331460747,1720424973899,-797.3952969,0.0004438,120]
[331460748,1720424973940,-797.3952969,0.0004438,120]
[331460749,1720424973990,-797.3952969,0.0004438,120]
[331460750,1720424974032,-797.3952969,0.0004438,120]
[331460751,1720424974077,-797.3952969,0.0004438,120]
[331460752,1720424974119,-797.3952969,0.0004438,120]
[331460755,1720424974162,-797.3952969,0.0004438,120]
[331460757,1720424974204,-797.3952969,0.0004438,120]
[331460758,1720424974248,-797.89,0.0004438,120]
[331460759,1720424974289,-4315.79,0.00044384,120]
[331460760,1720424974334,-302.070808,0.00044498,115]
[331460761,1720424974377,-302.070808,0.00044798,117]
[331460762,1720424974420,-399.0,0.000449,30]
[331460763,1720424974462,-213.0,0.000449,30]
[331460764,1720424974504,-167.53333333,0.00044986,120]
[331460765,1720424974548,-50000.0,0.00045,45]
[331460766,1720424974596,-50000.0,0.00045,35]
[331460767,1720424974637,-155.18008939,0.00045,120]
[331460768,1720424974678,-150.0,0.00045,85]
[331460769,1720424974719,-741.56289214,0.00045,120]
[331460770,1720424974760,-11056.83960449,0.00045,120]
[331460771,1720424974800,-125368.23811729,0.00045,120]
[331460772,1720424974841,-967.59484101,0.00045,120]
[331460773,1720424974883,-150.0,0.00045,120]
[331460774,1720424974924,-409.67224804,0.00045,45]
[331460775,1720424974967,-1074.0,0.00045,120]
[331460776,1720424975012,-2387.56470241,0.00045,120]
[331460777,1720424975056,-64731.731399,0.00045,60]
[331460778,1720424975102,-1049.11845,0.00045088,30]
[331460779,1720424975145,-412.0899,0.0004514,30]
[331460780,1720424975188,-302.070808,0.00045198,113]
[331460781,1720424975230,-1049.11845,0.00045288,30]
[331460782,1720424975270,-600.0,0.00045311,120]
[331460783,1720424975311,-151.0,0.0004537,120]
[331460784,1720424975355,-1049.11845,0.00045488,30]
[331460785,1720424975399,-302.070808,0.00045498,115]
[331460786,1720424975442,-10036.32876991,0.000455,90]
[331460787,1720424975484,-392.65534115,0.000456,120]
[331460788,1720424975526,-863.9504525,0.000456,120]
[331460789,1720424975569,-1049.11845,0.00045688,30]
[331460790,1720424975614,-167.53333333,0.00045699,120]
[331460791,1720424975659,-302.070808,0.00045798,117]
[331460792,1720424975701,-417.05869898,0.0004588,60]
[331460793,1720424975960,-156.8588,0.00045888,30]
[331460794,1720424976004,-315.90300678,0.000459,60]
[331460795,1720424976049,-20293.76432047,0.000459,60]
[331460796,1720424976095,-50000.0,0.00046,46]
[331460797,1720424976141,-50000.0,0.00046,36]
[331460798,1720424976183,-1190.12,0.00046,30]
[331460799,1720424976225,-214.22152041,0.00046,120]
[331460800,1720424976268,-1000.0,0.00046,30]
[331460801,1720424976312,-168.6,0.00046,96]
[331460802,1720424976357,-1702.01273883,0.00046,120]
[331460803,1720424976400,-208.46882747,0.0004602,120]
[331460804,1720424976443,-1049.11845,0.00046088,30]
[331460805,1720424976488,-302.070808,0.00046198,113]
[331460806,1720424976532,-1049.11845,0.00046288,30]
[331460807,1720424976578,-302.070808,0.00046398,112]
[331460808,1720424976623,-167.53333333,0.00046411,120]
[331460809,1720424976666,-1049.11845,0.00046488,30]
[331460810,1720424976710,-302.070808,0.00046498,115]
[331460811,1720424976751,-1130.29629834,0.000465,120]
[331460812,1720424976796,-2670.28927,0.000465,30]
[331460813,1720424976836,-489.25882827,0.00046515,120]
[331460814,1720424976877,-108953.81357128,0.0004656,30]
[331460815,1720424976921,-26849.891914,0.000466,90]
[331460816,1720424976970,-1049.11845,0.00046688,30]
[331460817,1720424977017,-151.0,0.00046712,120]
[331460818,1720424977063,-600.0,0.00046716,120]
[331460819,1720424977107,-302.070808,0.00046798,117]
[331460820,1720424977151,-50000.0,0.00047,47]
[331460821,1720424977196,-50000.0,0.00047,37]
[331460822,1720424977239,-162.44531417,0.00047,120]
[331460823,1720424977281,-405.77702114,0.00047,90]
[331460824,1720424977325,-873.31663925,0.00047,120]
[331460825,1720424977368,-170.8220751,0.00047,120]
[331460826,1720424977412,-500.0,0.00047,120]
[331460827,1720424977455,-167.53333333,0.00047123,120]
[331460828,1720424977519,-302.070808,0.00047198,113]
[331460829,1720424977567,-302.070808,0.00047398,114]
[331460830,1720424977612,-302.070808,0.00047498,115]
[331460831,1720424977655,-2000.000099,0.000475,30]
[331460832,1720424977700,-302.070808,0.00047798,117]
[331460833,1720424977742,-167.53333333,0.00047836,120]
[331460834,1720424977783,-13755.93937183,0.000479,30]
[331460835,1720424977825,-184.5654863,0.0004798,120]
[331460836,1720424977871,-50000.0,0.00048,48]
[331460837,1720424977914,-50000.0,0.00048,38]
[331460838,1720424977960,-829.64132298,0.00048,120]
[331460839,1720424978000,-157.62299953,0.00048,120]
[331460840,1720424978042,-492.43992979,0.00048,120]
[331460841,1720424978083,-5000.0,0.00048,120]
[331460842,1720424978124,-1702.01273884,0.00048,120]
[331460843,1720424978165,-450.0,0.00048,120]
[331460844,1720424978208,-220.0,0.00048,120]
[331460845,1720424978251,-151.0,0.00048055,120]
[331460846,1720424978296,-302.070808,0.00048198,113]
[331460847,1720424978341,-302.070811,0.00048398,116]
[331460848,1720424978386,-302.070811,0.00048498,115]
[331460849,1720424978430,-167.53333333,0.00048548,120]
[331460850,1720424978475,-1286.09764153,0.000487,120]
[331460851,1720424978517,-162.54413124,0.00048775,120]
[331460852,1720424978561,-302.070811,0.00048798,117]
[331460853,1720424978608,-1040.9193139,0.000488,120]
[331460854,1720424978651,-159.84884798,0.000488,120]
[331460855,1720424978694,-3000.987,0.000488,90]
[331460856,1720424978735,-2416.85299232,0.0004888,30]
[331460857,1720424978775,-410.0,0.00048986,120]
[331460858,1720424978818,-50000.0,0.00049,49]
[331460859,1720424978864,-50000.0,0.00049,39]
[331460860,1720424978905,-734.61004897,0.00049,30]
[331460861,1720424978946,-1102.57527955,0.00049,120]
[331460862,1720424978995,-704.85083053,0.00049,120]
[331460863,1720424979040,-536.72540965,0.00049,90]
[331460864,1720424979092,-210.37598133,0.00049,50]
[331460865,1720424979137,-454.52396652,0.00049,120]
[331460866,1720424979182,-734.0,0.00049,120]
[331460867,1720424979231,-250.4255189,0.00049,120]
[331460868,1720424979280,-302.070811,0.00049198,113]
[331460869,1720424979328,-167.53333333,0.0004926,120]
[331460870,1720424979376,-1000.0,0.00049315,120]
[331460871,1720424979422,-1000.0,0.00049315,120]
[331460872,1720424979470,-1000.0,0.00049315,120]
[331460873,1720424979520,-1000.0,0.00049315,120]
[331460874,1720424979567,-1000.0,0.00049315,120]
[331460875,1720424979614,-1000.0,0.00049315,120]
[331460876,1720424979660,-1000.0,0.00049315,120]
[331460877,1720424979705,-825.68,0.00049315,120]
[331460878,1720424979749,-500.0,0.00049315,120]
[331460879,1720424979798,-500.0,0.00049315,120]
[331460880,1720424979844,-500.0,0.00049315,120]
[331460881,1720424979889,-500.0,0.00049315,120]
[331460882,1720424979935,-500.0,0.00049315,120]
[331460883,1720424979982,-500.0,0.00049315,120]
[331460884,1720424980028,-500.0,0.00049315,120]
[331460885,1720424980074,-500.0,0.00049315,30]
[331460886,1720424980117,-500.0,0.00049315,31]
[331460887,1720424980166,-500.0,0.00049315,32]
[331460888,1720424980211,-500.0,0.00049315,33]
[331460889,1720424980257,-500.0,0.00049315,34]
[331460890,1720424980302,-500.0,0.00049315,35]
[331460891,1720424980346,-500.0,0.00049315,36]
[331460892,1720424980389,-500.0,0.00049315,37]
[331460893,1720424980432,-500.0,0.00049315,38]
[331460894,1720424980476,-500.0,0.00049315,39]
[331460895,1720424980522,-500.0,0.00049315,40]
[331460896,1720424980567,-500.0,0.00049315,41]
[331460897,1720424980875,-500.0,0.00049315,42]
[331460898,1720424980920,-500.0,0.00049315,43]
[331460899,1720424980966,-500.0,0.00049315,44]
[331460900,1720424981007,-366.45300373,0.00049315,45]
[331460901,1720424981051,-1000.0,0.00049315,120]
[331460903,1720424981093,-1000.0,0.00049315,120]
[331460904,1720424981136,-1000.0,0.00049315,120]
[331460905,1720424981179,-1000.0,0.00049315,120]
[331460906,1720424981219,-1000.0,0.00049315,120]
[331460908,1720424981263,-1000.0,0.00049315,120]
[331460909,1720424981304,-1000.0,0.00049315,120]
[331460910,1720424981347,-1000.0,0.00049315,120]
[331460911,1720424981387,-1000.0,0.00049315,120]
[331460912,1720424981427,-1000.0,0.00049315,120]
[331460913,1720424981470,-1000.0,0.00049315,120]
[331460914,1720424981517,-1000.0,0.00049315,120]
[331460915,1720424981559,-1000.0,0.00049315,120]
[331460916,1720424981601,-1000.0,0.00049315,120]
[331460917,1720424981644,-1000.0,0.00049315,120]
[331460918,1720424981686,-1000.0,0.00049315,120]
[331460919,1720424981727,-1000.0,0.00049315,120]
[331460920,1720424981768,-1000.0,0.00049315,120]
[331460921,1720424981808,-1000.0,0.00049315,120]
[331460922,1720424981850,-702.84529808,0.00049315,120]
[331460923,1720424981891,-151.0,0.00049397,120]
[331460924,1720424981933,-302.070811,0.00049398,117]
[331460925,1720424981976,-302.070811,0.00049498,115]
[331460926,1720424982017,-302.070811,0.00049498,115]
[331460927,1720424982059,-835.31383024,0.000495,120]
[331460928,1720424982107,-450.53532575,0.000495,120]
[331460929,1720424982150,-302.070811,0.00049798,117]
[331460930,1720424982190,-603.33284129,0.000498,30]
[331460931,1720424982228,-496.12975819,0.000498,120]
[331460932,1720424982269,-254.86477224,0.000498,120]
[331460933,1720424982309,-260.52476096,0.000498,120]
[331460934,1720424982352,-49999.999999,0.000498,120]
[331460935,1720424982396,-99999.97915416,0.0004988,30]
[331460936,1720424982437,-200.0,0.000499,120]
[331460937,1720424982479,-184.71365341,0.000499,120]
[331460938,1720424982520,-167.53333333,0.00049973,120]
[331460939,1720424982560,-3495.72877509,0.0004998,30]
[331460940,1720424982604,-50000.0,0.0005,50]
[331460941,1720424982647,-50000.0,0.0005,40]
[331460942,1720424982689,-150.0,0.0005,120]
[331460943,1720424982731,-1000.0,0.0005,120]
[331460944,1720424982772,-162.15545844,0.0005,60]
[331460945,1720424982814,-1040.63860156,0.0005,120]
[331460946,1720424982855,-1314.98280838,0.0005,120]
[331460947,1720424982895,-282.19377383,0.0005,120]
[331460948,1720424982944,-1218.55900274,0.0005,120]
[331460949,1720424982993,-805.08119421,0.0005,120]
[331460950,1720424983040,-231.77311572,0.0005,120]
[331460951,1720424983084,-500.52099965,0.0005,120]
[331460952,1720424983128,-742.15426449,0.0005,120]
[331460953,1720424983168,-163.72840144,0.0005,120]
[331460954,1720424983209,-1411.0,0.0005,120]
[331460955,1720424983249,-1238.0,0.0005,120]
[331460956,1720424983290,-301.94003724,0.0005,120]
[331460957,1720424983331,-1000.0,0.0005,50]
[331460958,1720424983372,-1022.30996579,0.0005,30]
[331460959,1720424983414,-151.89343221,0.0005,120]
[331460960,1720424983455,-101710.77115212,0.0005,90]
[331460961,1720424983495,-157661.04722375,0.0005,90]
[331460962,1720424983536,-887.0,0.0005,120]
[331460963,1720424983582,-313.0,0.0005,120]
[331460964,1720424983635,-1044.62,0.0005,120]
[331460965,1720424983680,-791002.36684676,0.0005,90]
[331460966,1720424983722,-10146.58885471,0.0005,32]
[331460967,1720424983763,-2033782.20763718,0.0005,90]
[331460968,1720424983803,-569939.38434487,0.0005,90]
[331460969,1720424983847,-150.0,0.0005,120]
[331460970,1720424983890,-382459.04216198,0.0005,90]
[331460971,1720424983932,-200.0,0.0005,120]
[331460972,1720424983979,-198.3634024,0.0005,30]
[331460973,1720424984024,-173.0,0.0005,120]
[331460974,1720424984069,-373.53707745,0.0005,120]
[331460975,1720424984109,-376.0,0.0005,120]
[331460976,1720424984149,-319.57263735,0.0005,120]
[331460977,1720424984189,-200.0,0.0005,120]
[331460978,1720424984227,-200.0,0.0005,120]
[331460979,1720424984265,-285.07926673,0.0005,120]
[331460980,1720424984308,-173.72654931,0.0005,120]
[331460981,1720424984346,-200.0,0.0005,120]
[331460982,1720424984384,-108145.92280555,0.0005,120]
[331460983,1720424984423,-200.0,0.0005,120]
[331460984,1720424984470,-302.070811,0.00050198,115]
[331460985,1720424984512,-302.070811,0.00050398,119]
[331460986,1720424984554,-302.070811,0.00050498,117]
[331460987,1720424984596,-167.53333333,0.00050685,120]
[331460988,1720424984635,-151.0,0.0005074,120]
[331460989,1720424984676,-302.070811,0.00050798,119]
[331460990,1720424984714,-698.00526037,0.0005089,120]
[331460991,1720424984752,-4637.263533,0.000509,30]
[331460992,1720424984793,-50000.0,0.00051,51]
[331460993,1720424984832,-635.0,0.00051,60]
[331460994,1720424984871,-500000.0,0.00051,30]
[331460995,1720424984910,-500000.0,0.000511,30]
[331460996,1720424984953,-302.070811,0.00051198,115]
[331460997,1720424984994,-500000.0,0.000512,30]
[331460998,1720424985034,-174256.48892834,0.000513,30]
[331460999,1720424985073,-167.53333333,0.00051397,120]
[331461000,1720424985113,-302.070811,0.00051398,119]
[331461001,1720424985153,-302.070811,0.00051498,117]
[331461002,1720424985416,-150.0,0.000515,30]
[331461003,1720424985459,-239.8157144,0.000517,120]
[331461004,1720424985500,-499.070718,0.00051798,119]
[331461005,1720424985539,-572.85725796,0.000518,30]
[331461006,1720424985586,-50000.0,0.00052,52]
[331461007,1720424985626,-335.59074059,0.00052,120]
[331461008,1720424985667,-700.0,0.00052,120]
[331461009,1720424985706,-188.21918856,0.00052,120]
[331461010,1720424985746,-5060.31898182,0.00052,120]
[331461011,1720424985784,-152.69010712,0.00052,120]
[331461012,1720424985823,-151.0,0.00052082,120]
[331461013,1720424985860,-167.53333333,0.0005211,120]
[331461014,1720424985899,-341.070805,0.00052198,115]
[331461015,1720424985941,-499.070718,0.00052398,119]
[331461016,1720424985985,-341.070805,0.00052498,117]
[331461017,1720424986027,-5321.28486417,0.000527,60]
[331461018,1720424986067,-499.070718,0.00052798,119]
[331461019,1720424986107,-8783.07878322,0.000528,120]
[331461020,1720424986147,-8009.48295169,0.000528,120]
[331461021,1720424986186,-176649.19376574,0.000528,120]
[331461022,1720424986226,-6812.56032269,0.000528,120]
[331461023,1720425001483,793.45993091,0.00011,2]
[331461024,1720425023263,20274.284491,0.00025,120]
[331461128,1720425052606,436.84,0.00011441,2]
[331461130,1720425117425,-250.0,0.00012889,2]
[331461131,1720425117435,-1000.0,0.00013021,2]
[331461132,1720425117444,-208.63065251,0.00013128,2]
[331461133,1720425117453,-1835.72,0.0001318,2]
[331461134,1720425117462,-155.4,0.00013313,2]
[331461135,1720425117472,-175.3133,0.00013474,2]
[331461136,1720425117481,-4764.8295,0.00013474,2]
[331461137,1720425117490,-506.86785497,0.00013474,2]
[331461138,1720425117502,-5865.45045287,0.00013474,2]
[331461139,1720425117513,-3715.68049216,0.00013474,2]
[331461140,1720425117522,-250.0,0.00013487,2]
[331461141,1720425117531,-1232.85205701,0.0001358,2]
[331461142,1720425117540,-150.0,0.00013698,2]
[331461143,1720425117550,-680.65,0.00013699,2]
[331461144,1720425117559,-250.0,0.00013699,2]
[331461145,1720425117568,-200.0,0.00013699,2]
[331461146,1720425117577,-436.84,0.00013705,2]
[331461147,1720425117587,-1836.0,0.00013761,2]
[331461148,1720425117596,-167.78055634,0.000138,2]
[331461149,1720425117605,-417.6793,0.000138,2]
[331461150,1720425117614,-301.63476538,0.000138,2]
[331461151,1720425117623,-1173.41709658,0.000138,2]
[331461152,1720425117632,-203.93691935,0.000138,2]
[331461153,1720425117642,-5942.26883463,0.000138,2]
[331461154,1720425117651,-953.034,0.000139,2]
[331461155,1720425117661,-1285.3297,0.000139,2]
[331461156,1720425117670,-3400.4621,0.000139,2]
[331461157,1720425117680,-230.0229,0.000139,2]
[331461158,1720425117689,-41577.118,0.000139,2]
[331461159,1720425117698,-868733.04449396,0.000139,2]
[331461160,1720425117710,-829.0,0.000139,2]
[331461161,1720425117721,-3064.60664569,0.000139,2]
[331461162,1720425117732,-933.82213691,0.000139,2]
[331461163,1720425117743,-257.23433876,0.000139,2]
[331461164,1720425117755,-747.70566124,0.000139,2]
[331461165,1720425117766,-1666.21666469,0.000139,2]
[331461166,1720425117778,-741.8811006,0.000139,2]
[331461167,1720425117789,-4130.4738439,0.000139,2]
[331461168,1720425117800,-2522.06617273,0.000139,2]
[331461169,1720425117811,-7384.92556584,0.000139,2]
[331461170,1720425117822,-2748.05976961,0.000139,2]
[331461171,1720425117834,-567.12177962,0.000139,2]
[331461172,1720425117845,-2287.74841182,0.000139,2]
[331461173,1720425117856,-672.3424,0.000139,2]
[331461174,1720425117867,-784.34351086,0.000139,2]
[331461175,1720425117878,-3406.03390733,0.000139,2]
[331461176,1720425117889,-363.76455997,0.000139,2]
[331461177,1720425117900,-7394.08313143,0.000139,2]
[331461178,1720425117911,-619.65174307,0.000139,2]
[331461179,1720425117923,-1264.45479443,0.000139,2]
[331461180,1720425120926,-240.84493979,0.0001389,2]
[331461181,1720425120937,-642114.41936754,0.000139,2]
[331461182,1720425120946,-15679.4269,0.000139,2]
[331461183,1720425120956,-4748.0866,0.000139,2]
[331461184,1720425120965,-1173.41709656,0.00013957,2]
[331461185,1720425120974,-2000.0,0.00013973,3]
[331461186,1720425120983,-240.84493979,0.0001399,2]
[331461187,1720425120993,-240.84493979,0.0001399,2]
[331461188,1720425121005,-957511.71508787,0.00014,2]
[331461189,1720425121016,-2181.7565441,0.00014,2]
[331461190,1720425121027,-414.0846342,0.00014,2]
[331461191,1720425121038,-702.12138426,0.00014,2]
[331461192,1720425121054,-5808.96321637,0.00014,2]
[331461193,1720425121065,-3733.84704,0.00014,2]
[331461194,1720425121079,-1973.84237263,0.00014,2]
[331461195,1720425121091,-438.29,0.00014,2]
[331461196,1720425121102,-975.42738337,0.00014,2]
[331461197,1720425121127,-506.89261799,0.00014,2]
[331461198,1720425121138,-2645.47590109,0.00014,2]
[331461199,1720425121149,-47562.56452375,0.00014,2]
[331461200,1720425121160,-3074.2545,0.00014,2]
[331461201,1720425121217,-10057.64443999,0.00014,2]
[331461202,1720425121228,-314086.53418241,0.00014,2]
[331461203,1720425121253,-316856.19056204,0.00014,2]
[331461204,1720425121264,-255.53745705,0.00014,2]
[331461205,1720425121296,-391.738,0.00014,2]
[331461206,1720425121307,-946.68911261,0.00014,2]
[331461207,1720425122571,-250.0,0.00013031,2]
[331461208,1720425122580,-87.374,0.00014,2]
[331461209,1720425122626,-1104.33346155,0.00014,2]
[331461210,1720425122637,-338.79383807,0.00014,2]
[331461211,1720425122693,-924.1338722,0.00014,2]
[331461212,1720425122704,-213807.5000269,0.00014,2]
[331461213,1720425122717,-13219.08304732,0.00014,2]
[331461214,1720425122727,-11478.26866453,0.00014,2]
[331461215,1720425122738,-9417.0797708,0.00014,2]
[331461216,1720425122749,-169535.88831178,0.00014,2]
[331461217,1720425122760,-20666.65004122,0.00014,2]
[331461218,1720425122910,-1121.2213578,0.00014,2]
[331461219,1720425122921,-398.54482462,0.00014,2]
[331461220,1720425123052,-281056.12490287,0.00014,2]
[331461221,1720425123071,-220110.84910983,0.00014,2]
[331461222,1720425123083,-2087.4879827,0.00014,2]
[331461223,1720425123094,-968.4004932,0.00014,2]
[331461224,1720425123106,-856.16785833,0.00014,2]
[331461225,1720425123144,-1383.8566216,0.00014,2]
[331461226,1720425123155,-3233.95897282,0.00014,2]
[331461227,1720425123166,-511.28872145,0.00014,2]
[331461228,1720425123176,-14579.88125016,0.00014,2]
[331461229,1720425123201,-1487.92434299,0.00014,2]
[331461230,1720425123212,-387.72733961,0.00014,2]
[331461231,1720425123223,-3405.37844259,0.00014,2]
[331461232,1720425123234,-155923.75940339,0.00014,2]
[331461233,1720425123243,-282.0,0.00014,2]
[331461234,1720425123253,-1173.41709656,0.00014114,2]
[331461235,1720425123262,-1173.41709656,0.00014271,2]
[331461236,1720425123271,-1173.41709656,0.00014429,2]
[331461237,1720425123280,-1173.41709656,0.00014586,2]
[331461238,1720425123290,-1000.0,0.00014648,2]
[331461239,1720425123299,-1173.41709656,0.00014743,2]
[331461240,1720425123308,-282.43974,0.0001485,2]
[331461241,1720425123318,-500.0,0.0001488,2]
[331461242,1720425123327,-200.0,0.0001488,2]